bitfinex-derivatives/quotes_SOLF0:USTF0_20250929
["timestamp","ask_amount","ask_price","bid_price","bid_amount"]
[1759165057810,18.56751009,208.9,208.83,4.3068]
[1759165058011,4.3056,208.9,208.83,4.3068]
[1759165058513,7.46,208.89,208.83,4.3068]
[1759165058912,11.7658,208.89,208.83,4.3068]
[1759165060917,4.306,208.88,208.82,8.14]
[1759165061121,7.46,208.85,208.76,8.14]
[1759165061319,11.7667,208.85,208.76,12.4483]
[1759165061523,11.7667,208.85,208.76,8.14]
[1759165062021,11.7667,208.85,208.78,4.3078]
[1759165062322,11.7667,208.85,208.76,8.14]
[1759165062507,11.7667,208.85,208.77,4.308]
[1759165062712,11.7667,208.85,208.76,8.14]
[1759165063316,11.7667,208.85,208.77,4.308]
[1759165063515,7.46,208.82,208.78,8.14]
[1759165063718,2.04901253,208.83,208.75,4.3085]
[1759165063918,2.04901253,208.83,208.72,2.04901253]
[1759165063919,7.46,208.82,208.74,8.14]
[1759165064617,4.3074,208.81,208.74,8.14]
[1759165064922,9.50901253,208.82,208.74,8.14]
[1759165065321,13.81631253,208.82,208.75,4.3085]
[1759165066211,11.7673,208.82,208.76,2.04901253]
[1759165067424,7.46,208.8,208.76,2.04901253]
[1759165068114,4.3075,208.81,208.76,2.04901253]
[1759165068315,4.3075,208.81,208.75,2.04901253]
[1759165068523,4.3076,208.8,208.75,2.04901253]
[1759165068918,7.46,208.79,208.75,2.04901253]
[1759165069117,4.3076,208.8,208.75,2.04901253]
[1759165069421,7.46,208.79,208.73,10.18901253]
[1759165069610,7.46,208.79,208.73,8.14]
[1759165069815,11.7679,208.79,208.72,6.35811253]
[1759165070115,7.46,208.79,208.75,8.14]
[1759165070319,2.04901253,208.84,208.67,67.0467]
[1759165070320,130.3669,208.83,208.76,8.14]
[1759165070513,126.06,208.83,208.76,8.14]
[1759165070718,7.46,208.83,208.76,8.14]
[1759165070919,7.46,208.83,208.76,11.35002093]
[1759165071115,7.46,208.83,208.76,8.14]
[1759165071318,7.46,208.83,208.76,11.35002093]
[1759165073513,7.46,208.83,208.76,15.65832093]
[1759165074720,7.82,208.83,208.73,4.3088]
[1759165074925,7.82,208.83,208.74,7.84]
[1759165075721,4.3075,208.81,208.74,12.1486]
[1759165076515,12.1275,208.81,208.74,12.1486]
[1759165076720,4.3077,208.8,208.74,12.1486]
[1759165077921,4.3077,208.8,208.74,7.84]
[1759165078127,7.82,208.79,208.72,7.51912093]
[1759165078627,7.82,208.79,208.71,7.84]
[1759165080628,7.82,208.79,208.72,4.3091]
[1759165081124,7.82,208.79,208.71,7.84]
[1759165081329,126.42,208.79,208.71,7.84]
[1759165081733,4.308,208.78,208.71,12.1493]
[1759165083322,7.82,208.83,208.73,7.84]
[1759165083529,50.22,208.82,208.73,7.84]
[1759165083727,54.5272,208.82,208.76,4.3082]
[1759165084523,4.3072,208.82,208.76,4.3082]
[1759165084929,4.3072,208.82,208.73,12.1488]
[1759165085235,7.82,208.81,208.73,7.84]
[1759165085434,12.1274,208.81,208.74,4.3086]
[1759165086537,7.82,208.82,208.72,4.3091]
[1759165087533,4.3076,208.8,208.73,12.1488]
[1759165087735,7.82,208.79,208.73,12.1488]
[1759165088331,12.1278,208.79,208.73,12.1488]
[1759165088733,7.82,208.79,208.71,4.3093]
[1759165088934,4.3082,208.77,208.71,4.3093]
[1759165090542,4.3085,208.76,208.7,7.84]
[1759165091235,12.1286,208.75,208.7,7.84]
[1759165091436,12.1286,208.75,208.69,4.3098]
[1759165091938,7.82,208.75,208.68,7.84]
[1759165093035,3.21002093,208.74,208.64,4.3107]
[1759165093236,7.82,208.73,208.63,7.84]
[1759165093533,11.03002093,208.73,208.63,7.84]
[1759165093836,3.21002093,208.77,208.64,7.84]
[1759165094035,3.27760518,208.78,208.67,7.84]
[1759165094339,6.48932237,208.8,208.67,7.84]
[1759165094644,61.84932237,208.8,208.67,7.84]
[1759165094834,58.57002093,208.8,208.67,7.84]
[1759165095345,58.57002093,208.8,208.65,7.76]
[1759165095346,11.19416845,208.79,208.65,7.76]
[1759165095641,7.91,208.79,208.67,7.76]
[1759165096036,4.3081,208.78,208.71,4.3092]
[1759165096235,4.3081,208.78,208.7,7.76]
[1759165096447,4.3083,208.77,208.7,7.76]
[1759165096932,3.28501479,208.78,208.7,7.76]
[1759165097131,7.91,208.77,208.7,7.76]
[1759165097328,4.3085,208.76,208.7,7.76]
[1759165097636,7.5942326,208.76,208.7,7.76]
[1759165099139,4.3085,208.76,208.7,7.76]
[1759165099340,7.5957056,208.76,208.7,7.76]
[1759165100436,7.5957056,208.76,208.7,12.0694]
[1759165101335,7.5957056,208.76,208.7,7.76]
[1759165102338,7.91,208.74,208.7,7.76]
[1759165103434,7.91,208.73,208.65,7.76]
[1759165104131,118.6,208.74,208.67,8.03]
[1759165104635,7.38,208.76,208.68,4.3099]
[1759165104636,4.3086,208.75,208.68,4.3099]
[1759165104941,10.59002093,208.81,208.67,8.03]
[1759165105137,84.91228232,208.8,208.67,8.03]
[1759165105342,4.308,208.78,208.72,8.03]
[1759165105640,3.29228232,208.77,208.71,4.3092]
[1759165106137,3.29228232,208.77,208.71,12.3392]
[1759165106540,7.60048232,208.77,208.71,8.03]
[1759165106736,3.29228232,208.77,208.71,8.03]
[1759165106943,10.67228232,208.76,208.64,8.03]
[1759165107134,4.3088,208.74,208.67,12.3401]
[1759165107338,3.29377957,208.75,208.67,8.03]
[1759165107533,10.67377957,208.74,208.67,8.03]
[1759165107732,3.29377957,208.73,208.67,8.03]
[1759165108539,4.3093,208.72,208.67,8.03]
[1759165108739,3.29377957,208.73,208.63,8.03]
[1759165109244,7.38,208.72,208.63,12.3409]
[1759165109441,7.38,208.72,208.63,8.03]
[1759165110646,11.6901,208.68,208.63,8.03]
[1759165110840,185.6261,208.74,208.62,8.03]
[1759165111047,7.38,208.72,208.62,8.03]
[1759165111440,7.38,208.61,208.48,8.03]
[1759165111842,23.64,208.6,208.48,8.03]
[1759165112038,7.38,208.59,208.48,8.03]
[1759165112241,118.78,208.58,208.48,8.03]
[1759165112442,67.0711,208.6,208.4,8.03]
[1759165112443,7.38,208.53,208.4,8.03]
[1759165112648,119.06,208.52,208.41,3.21002093]
[1759165112948,7.38,208.51,208.41,3.21002093]
[1759165113137,7.38,208.51,208.4,12.3458]
[1759165113339,7.38,208.51,208.4,8.03]
[1759165113340,4.3137,208.5,208.4,8.03]
[1759165113539,7.38,208.49,208.37,3.21002093]
[1759165113747,62.82,208.48,208.37,3.21002093]
[1759165114250,7.38,208.49,208.4,67.1332]
[1759165114442,51.0,208.54,208.42,67.1282]
[1759165114745,67.0617,208.63,208.44,8.03]
[1759165114951,86.78,208.58,208.48,8.03]
[1759165115251,7.38,208.58,208.48,8.03]
[1759165115449,7.38,208.58,208.48,12.344]
[1759165116848,7.38,208.58,208.5,4.3136]
[1759165118948,7.38,208.58,208.48,8.03]
[1759165119544,7.38,208.58,208.49,4.3139]
[1759165119744,7.38,208.58,208.48,8.03]
[1759165120147,7.38,208.58,208.43,8.03]
[1759165120653,11.6925,208.56,208.44,4.3149]
[1759165121645,11.6925,208.56,208.43,8.03]
[1759165121847,7.38,208.53,208.43,8.03]
[1759165122449,4.3133,208.52,208.43,8.03]
[1759165122754,7.38,208.52,208.38,8.03]
[1759165123345,7.38,208.49,208.38,8.03]
[1759165123550,127.04,208.49,208.38,8.03]
[1759165123954,4.3142,208.48,208.38,8.03]
[1759165124950,11.6946,208.46,208.38,8.03]
[1759165125250,7.38,208.46,208.34,24.9010151]
[1759165125451,7.38,208.46,208.36,8.03]
[1759165126151,7.38,208.45,208.34,12.5541151]
[1759165126649,124.435,208.44,208.34,12.5541151]
[1759165126849,7.38,208.43,208.34,12.5541151]
[1759165127849,7.38,208.43,208.34,20.5841151]
[1759165129652,7.38,208.43,208.36,4.3165]
[1759165130242,4.3147,208.46,208.36,4.3165]
[1759165130452,7.38,208.47,208.38,12.3461]
[1759165130648,7.38,208.47,208.38,8.03]
[1759165131553,7.38,208.47,208.4,4.3158]
[1759165131752,322.12,208.51,208.41,8.03]
[1759165132261,322.12,208.51,208.42,4.3154]
[1759165132957,322.12,208.51,208.41,8.03]
[1759165133655,322.12,208.51,208.43,4.3151]
[1759165135053,7.38,208.54,208.45,4.3147]
[1759165135247,7.38,208.54,208.45,7.62]
[1759165135451,8.92789755,208.59,208.46,7.62]
[1759165135651,8.92789755,208.59,208.5,11.9337]
[1759165136051,8.92789755,208.59,208.5,7.62]
[1759165136252,13.23999755,208.59,208.5,7.62]
[1759165136457,8.92789755,208.59,208.5,7.62]
[1759165137452,8.92789755,208.59,208.5,11.9337]
[1759165137652,1.15789755,208.59,208.5,7.62]
[1759165138557,8.92789755,208.59,208.5,7.62]
[1759165139150,13.23979755,208.59,208.5,7.62]
[1759165140853,8.92789755,208.59,208.5,7.62]
[1759165141455,8.92789755,208.59,208.52,4.3133]
[1759165141647,1.15789755,208.59,208.52,4.3133]
[1759165141852,1.15789755,208.59,208.53,7.62]
[1759165143062,7.77,208.57,208.5,4.3135]
[1759165143453,7.77,208.57,208.48,7.62]
[1759165143754,1.15789755,208.59,208.48,7.62]
[1759165144463,1.15789755,208.59,208.52,11.9333]
[1759165144656,1.15789755,208.59,208.52,7.62]
[1759165145053,322.24,208.63,208.54,4.3129]
[1759165145263,7.77,208.62,208.53,5.58157925]
[1759165145563,7.77,208.62,208.52,7.62]
[1759165145750,12.0814,208.62,208.52,7.62]
[1759165146556,7.77,208.62,208.55,7.62]
[1759165148455,4.3117,208.6,208.52,4.3133]
[1759165149258,4.3117,208.6,208.51,7.62]
[1759165149553,7.77,208.62,208.51,7.62]
[1759165149755,7.77,208.62,208.52,7.62]
[1759165149957,7.77,208.66,208.56,7.62]
[1759165150362,3.26067245,208.65,208.56,7.62]
[1759165150967,7.77,208.66,208.56,7.62]
[1759165152669,7.77,208.66,208.57,4.3122]
[1759165153369,7.77,208.66,208.58,4.3119]
[1759165153566,7.77,208.66,208.56,7.62]
[1759165153761,3.26652941,208.65,208.56,7.62]
[1759165154157,4.311,208.64,208.56,11.9323]
[1759165154767,12.0805,208.66,208.56,7.62]
[1759165155666,4.3107,208.65,208.56,7.62]
[1759165155967,7.77,208.66,208.56,7.62]
[1759165156168,12.0805,208.66,208.58,4.3119]
[1759165156568,4.3112,208.63,208.56,7.62]
[1759165160072,4.3112,208.63,208.56,11.9323]
[1759165160966,123.9507,208.65,208.57,4.3121]
[1759165161167,4.3107,208.65,208.57,4.3121]
[1759165161361,7.5849218,208.65,208.57,4.3121]
[1759165161568,4.3109,208.64,208.57,4.3121]
[1759165162870,12.0805,208.66,208.58,4.3119]
[1759165163073,131.5605,208.66,208.58,4.3119]
[1759165164271,12.0805,208.66,208.58,4.3119]
[1759165164471,12.0805,208.66,208.59,4.3117]
[1759165164668,4.3107,208.65,208.59,7.8]
[1759165164865,7.77,208.66,208.55,7.8]
[1759165165664,4.3109,208.64,208.57,4.3122]
[1759165166172,4.3109,208.64,208.54,5.58157925]
[1759165166173,7.77,208.66,208.58,7.8]
[1759165167574,7.77,208.66,208.59,4.3117]
[1759165167974,11.7299,208.69,208.58,7.8]
[1759165168174,7.42,208.69,208.63,4.3109]
[1759165169472,9.23002,208.7,208.62,7.8]
[1759165169679,9.23002,208.7,208.64,7.8]
[1759165170277,9.23002,208.7,208.69,7.8]
[1759165170574,9.23002,208.7,208.61,72.64857925]
[1759165170779,9.23002,208.7,208.62,7.8]
[1759165171774,9.23002,208.7,208.67,7.8]
[1759165173677,9.23002,208.7,208.67,12.11]
[1759165173874,9.23002,208.7,208.65,7.8]
[1759165174075,9.23002,208.7,208.62,7.8]
[1759165174469,9.23002,208.7,208.66,7.8]
[1759165174673,9.23002,208.7,208.63,7.8]
[1759165174874,9.23002,208.7,208.65,7.8]
[1759165175871,9.23002,208.7,208.64,7.8]
[1759165177674,9.23002,208.7,208.67,7.8]
[1759165177879,9.23002,208.7,208.65,67.0548]
[1759165178384,9.23002,208.7,208.66,7.8]
[1759165178578,9.23002,208.7,208.68,4.3098]
[1759165178772,9.23002,208.7,208.69,7.8]
[1759165179574,7.42,208.81,208.69,8.28]
[1759165179777,7.42,208.81,208.69,7.8]
[1759165180586,7.42,208.81,208.73,4.3088]
[1759165181480,11.7275,208.81,208.73,4.3088]
[1759165182080,7.42,208.81,208.72,7.8]
[1759165183180,74.4142,208.84,208.67,7.8]
[1759165183486,4.3077,208.8,208.7,4.3095]
[1759165183683,7.42,208.79,208.71,7.8]
[1759165184985,7.42,208.79,208.75,7.8]
[1759165185588,7.42,208.79,208.71,7.8]
[1759165186594,11.7279,208.79,208.71,12.1093]
[1759165188293,4.3081,208.78,208.71,7.8]
[1759165190493,4.3081,208.78,208.71,12.1093]
[1759165190995,9.47511416,208.79,208.71,7.8]
[1759165191197,9.47511416,208.79,208.72,4.309]
[1759165192694,11.7279,208.79,208.72,4.309]
[1759165193492,4.3073,208.82,208.73,2.05511416]
[1759165193698,4.3073,208.82,208.74,7.8]
[1759165194596,4.3074,208.81,208.74,7.8]
[1759165195399,11.7269,208.83,208.74,7.8]
[1759165196000,4.3072,208.82,208.75,4.3084]
[1759165197308,7.94,208.8,208.73,4.3089]
[1759165197506,7.94,208.8,208.69,8.07]
[1759165198005,7.94,208.77,208.69,8.07]
[1759165199402,12.2483,208.77,208.7,4.3095]
[1759165200110,12.2483,208.77,208.69,8.07]
[1759165200509,4.3085,208.76,208.69,8.07]
[1759165200708,4.3085,208.76,208.7,4.3095]
[1759165200909,7.94,208.77,208.69,8.07]
[1759165202704,7.94,208.77,208.71,4.3092]
[1759165204311,12.2482,208.77,208.71,4.3092]
[1759165204510,12.2482,208.77,208.69,12.3797]
[1759165205009,7.94,208.74,208.65,87.4]
[1759165205406,7.94,208.74,208.66,8.07]
[1759165206206,3.21032996,208.77,208.66,8.07]
[1759165206404,3.21032996,208.77,208.67,8.07]
[1759165206605,5.3320898,208.92,208.66,14.60589062]
[1759165206606,7.94,208.87,208.75,8.07]
[1759165206805,7.94,208.87,208.8,4.3074]
[1759165207006,7.94,208.87,208.79,8.07]
[1759165208609,3.21032996,208.91,208.79,8.07]
[1759165208907,11.15032996,208.91,208.79,8.07]
[1759165209111,4.3061,208.87,208.79,8.07]
[1759165209617,7.94,208.86,208.79,8.07]
[1759165209808,7.94,208.9,208.79,8.07]
[1759165210311,3.2587887,208.89,208.84,4.3065]
[1759165210515,0.83352295,208.93,208.84,4.3065]
[1759165210516,11.1987887,208.93,208.84,4.3065]
[1759165210710,3.2587887,208.92,208.83,8.07]
[1759165211008,7.94,208.93,208.86,7.51652996]
[1759165211612,7.94,208.93,208.83,8.07]
[1759165211814,3.25813734,208.92,208.83,11.28032996]
[1759165212010,3.25813734,208.92,208.83,8.07]
[1759165212215,7.94,208.93,208.85,3.21032996]
[1759165212514,7.94,208.93,208.86,8.07]
[1759165213314,12.2448,208.93,208.86,8.07]
[1759165214018,12.2448,208.93,208.82,7.51722996]
[1759165214308,7.88,208.9,208.82,7.51722996]
[1759165216913,4.3057,208.89,208.81,7.42]
[1759165218012,7.88,208.9,208.81,7.42]
[1759165218915,7.88,208.9,208.82,4.3071]
[1759165219117,4.3051,208.92,208.81,7.42]
[1759165219318,3.23140334,208.93,208.81,7.42]
[1759165219617,12.1847,208.94,208.81,7.42]
[1759165220020,12.1847,208.94,208.82,7.42]
[1759165221415,12.1847,208.94,208.83,3.21032996]
[1759165221611,7.88,208.94,208.85,4.3063]
[1759165221915,7.88,208.91,208.82,7.42]
[1759165223122,7.88,208.88,208.79,4.3077]
[1759165223313,7.88,208.88,208.78,7.42]
[1759165224722,7.86,208.92,208.83,4.3068]
[1759165224919,7.86,208.92,208.83,7.85]
[1759165225126,7.86,208.92,208.84,7.85]
[1759165228320,7.86,208.92,208.85,4.3063]
[1759165228622,7.86,208.92,208.84,7.85]
[1759165229418,7.86,208.92,208.86,4.3062]
[1759165230816,7.86,208.92,208.84,12.1566]
[1759165231419,7.86,208.92,208.85,4.3063]
[1759165231724,7.86,208.92,208.86,7.85]
[1759165232325,4.04359346,208.98,208.86,7.85]
[1759165232326,7.86,208.97,208.86,7.85]
[1759165232721,12.1641,208.97,208.86,7.85]
[1759165233219,4.3044,208.96,208.89,4.3055]
[1759165234325,7.86,208.97,208.89,4.3055]
[1759165235024,12.1641,208.97,208.89,4.3055]
[1759165235618,12.1641,208.97,208.89,12.1555]
[1759165236524,12.1641,208.97,208.9,4.3053]
[1759165237626,4.3044,208.96,208.89,7.85]
[1759165238421,7.86,208.97,208.89,7.85]
[1759165238621,9.1270223,209.01,208.89,7.85]
[1759165239725,4.3035,209.0,208.93,4.3047]
[1759165240125,7.86,209.04,208.96,7.85]
[1759165240328,7.86,209.04,208.91,7.85]
[1759165240625,7.86,209.04,208.92,3.21032996]
[1759165240826,78.00032996,209.04,208.91,7.85]
[1759165241324,3.21032996,208.98,208.86,7.85]
[1759165241629,7.86,208.97,208.86,7.85]
[1759165242130,3.21032996,208.95,208.86,7.85]
[1759165242329,7.86,208.94,208.86,7.85]
[1759165242724,11.07032996,208.94,208.86,7.85]
[1759165242920,11.07032996,208.94,208.82,7.85]
[1759165242921,7.86,208.93,208.82,7.85]
[1759165243218,7.86,208.93,208.78,67.0112]
[1759165243219,3.21032996,208.88,208.78,7.85]
[1759165243418,7.86,208.87,208.78,7.85]
[1759165243625,7.86,208.87,208.73,329.63]
[1759165243824,3.21032996,208.88,208.73,329.63]
[1759165244325,7.86,208.84,208.75,7.85]
[1759165245725,7.86,208.84,208.78,4.3077]
[1759165246934,12.1661,208.88,208.78,12.1577]
[1759165247522,3.21032996,208.81,208.7,7.85]
[1759165247731,7.86,208.8,208.7,7.85]
[1759165248528,3.21032996,208.78,208.7,7.85]
[1759165249133,3.21032996,208.75,208.65,7.85]
[1759165250933,7.86,208.77,208.65,7.85]
[1759165251123,11.07032996,208.77,208.65,7.85]
[1759165251635,11.07032996,208.77,208.67,4.3102]
[1759165251833,11.07032996,208.77,208.65,7.85]
[1759165252529,15.37852996,208.77,208.65,7.85]
[1759165252730,7.86,208.77,208.65,67.0543]
[1759165252930,7.86,208.77,208.66,7.85]
[1759165253427,7.86,208.81,208.71,7.85]
[1759165254134,7.86,208.81,208.71,12.1593]
[1759165254338,2.05544194,208.78,208.71,7.85]
[1759165254534,9.91544194,208.81,208.73,4.3089]
[1759165254730,2.05544194,208.83,208.74,9.72544194]
[1759165254935,9.89544194,208.85,208.74,9.72544194]
[1759165255236,9.89544194,208.85,208.75,4.3085]
[1759165255839,9.89544194,208.85,208.76,2.05544194]
[1759165256333,7.84,208.85,208.75,4.3085]
[1759165256931,7.84,208.85,208.74,7.67]
[1759165257134,7.84,208.85,208.7,7.67]
[1759165257837,12.1474,208.81,208.71,4.3093]
[1759165259033,12.1474,208.81,208.66,108.7]
[1759165259034,67.032,208.73,208.63,5.34147555]
[1759165259227,7.84,208.79,208.61,7.67]
[1759165259429,7.84,208.79,208.64,7.67]
[1759165259630,120.06,208.78,208.64,7.67]
[1759165259833,4.3081,208.77,208.65,4.3106]
[1759165260039,4.3081,208.77,208.64,7.67]
[1759165260541,4.3081,208.77,208.67,11.9802]
[1759165262335,7.84,208.76,208.67,7.67]
[1759165262534,74.8599,208.76,208.62,7.67]
[1759165262934,7.84,208.71,208.62,7.67]
[1759165263340,7.84,208.71,208.57,7.67]
[1759165264542,4.3102,208.68,208.57,11.9823]
[1759165264731,7.84,208.69,208.57,11.9823]
[1759165266329,7.84,208.69,208.59,4.3118]
[1759165266539,7.84,208.69,208.6,7.67]
[1759165267544,7.84,208.69,208.62,4.3113]
[1759165267939,7.84,208.69,208.6,7.67]
[1759165269941,12.15,208.69,208.6,7.67]
[1759165270137,7.84,208.69,208.6,7.67]
[1759165271144,67.0458,208.68,208.56,7.67]
[1759165271444,74.8962,208.65,208.56,7.67]
[1759165272241,74.9054,208.62,208.52,7.67]
[1759165273547,4.3123,208.58,208.52,7.67]
[1759165274244,12.1025,208.56,208.46,7.4]
[1759165274548,7.79,208.56,208.46,7.4]
[1759165275145,4.3131,208.54,208.46,7.4]
[1759165275344,7.79,208.56,208.46,7.4]
[1759165276250,12.1026,208.56,208.47,4.3144]
[1759165276951,12.1026,208.56,208.46,7.4]
[1759165276952,4.3129,208.55,208.46,7.4]
[1759165277343,7.79,208.61,208.46,7.4]
[1759165277539,7.79,208.61,208.5,7.4]
[1759165277540,51.21,208.61,208.5,7.4]
[1759165278549,4.3119,208.6,208.51,4.3136]
[1759165278749,51.21,208.61,208.5,7.4]
[1759165278952,67.0725,208.6,208.5,7.4]
[1759165279249,7.79,208.57,208.5,7.4]
[1759165280454,12.1025,208.57,208.5,7.4]
[1759165280645,7.79,208.57,208.45,72.64334704]
[1759165280847,7.79,208.57,208.46,7.4]
[1759165281653,4.3131,208.54,208.46,7.4]
[1759165281949,7.79,208.57,208.46,7.4]
[1759165282356,4.3129,208.55,208.47,4.3142]
[1759165282555,7.79,208.57,208.46,7.4]
[1759165282957,4.3131,208.54,208.46,11.7144]
[1759165283258,4.3131,208.54,208.46,7.4]
[1759165283453,7.79,208.55,208.46,7.4]
[1759165283657,7.79,208.55,208.42,326.2154]
[1759165283658,7.79,208.54,208.42,333.6154]
[1759165284156,4.3139,208.5,208.42,333.6154]
[1759165285153,8.14,208.51,208.42,7.4]
[1759165285557,8.14,208.51,208.39,119.8]
[1759165285764,8.14,208.48,208.39,119.8]
[1759165286056,4.3151,208.44,208.37,12.3563]
[1759165286853,12.4546,208.46,208.38,4.3161]
[1759165289755,4.3142,208.48,208.39,8.04]
[1759165289959,4.3142,208.48,208.39,12.3559]
[1759165290360,8.14,208.5,208.39,8.04]
[1759165290757,12.4539,208.5,208.41,4.3154]
[1759165290951,8.14,208.5,208.39,8.04]
[1759165291354,4.3145,208.47,208.39,12.356]
[1759165291654,8.14,208.47,208.39,8.04]
[1759165291858,12.4544,208.47,208.39,8.04]
[1759165292556,4.314,208.49,208.39,8.04]
[1759165292760,8.14,208.51,208.39,8.04]
[1759165293260,12.4536,208.51,208.43,4.3151]
[1759165293862,4.3139,208.5,208.43,4.3151]
[1759165295462,4.3141,208.49,208.42,8.04]
[1759165296063,4.3141,208.49,208.42,12.3552]
[1759165296264,12.4536,208.51,208.43,2.06070886]
[1759165296663,8.14,208.51,208.43,2.06070886]
[1759165296959,4.3141,208.49,208.43,2.06070886]
[1759165297161,8.14,208.51,208.43,2.06070886]
[1759165298262,8.14,208.51,208.42,8.04]
[1759165298263,8.14,208.51,208.42,2.06070886]
[1759165298460,4.3143,208.48,208.42,2.06070886]
[1759165298663,8.14,208.48,208.41,4.3155]
[1759165298860,8.14,208.48,208.4,2.06070886]
[1759165299060,4.3149,208.45,208.38,10.10070886]
[1759165299263,8.14,208.46,208.38,10.10070886]
[1759165299763,8.14,208.42,208.38,2.06070886]
[1759165299964,8.14,208.42,208.36,2.06070886]
[1759165302168,12.4555,208.42,208.36,2.06070886]
[1759165302469,8.14,208.42,208.34,20.5941151]
[1759165302770,8.14,208.42,208.37,10.10070886]
[1759165303067,4.3157,208.41,208.37,10.10070886]
[1759165303370,4.3157,208.41,208.38,8.04]
[1759165305068,8.14,208.42,208.38,8.04]
[1759165305069,4.3159,208.4,208.38,8.04]
[1759165305266,8.14,208.41,208.34,20.5941151]
[1759165305466,8.14,208.41,208.34,12.5541151]
[1759165307574,4.3164,208.38,208.34,12.5541151]
[1759165307774,4.3164,208.38,208.35,8.04]
[1759165308266,12.4564,208.38,208.34,12.5541151]
[1759165308471,12.4564,208.38,208.34,20.5941151]
[1759165309077,4.3164,208.38,208.35,8.04]
[1759165309978,8.14,208.42,208.35,8.04]
[1759165311073,4.3162,208.39,208.35,8.04]
[1759165311274,8.14,208.42,208.35,8.04]
[1759165311677,4.3157,208.41,208.35,10.10070886]
[1759165312472,12.456,208.4,208.35,10.10070886]
[1759165312674,4.316,208.4,208.36,8.04]
[1759165312876,8.14,208.4,208.36,8.04]
[1759165313370,4.3162,208.39,208.34,12.5541151]
[1759165313572,4.3162,208.39,208.35,8.04]
[1759165313873,8.14,208.42,208.35,10.10070886]
[1759165314379,8.14,208.42,208.35,8.04]
[1759165315167,4.3159,208.4,208.35,8.04]
[1759165315370,4.3159,208.4,208.35,8.02]
[1759165315573,4.3159,208.4,208.34,12.5541151]
[1759165315774,4.3159,208.4,208.35,8.02]
[1759165316470,4.3159,208.4,208.34,12.5541151]
[1759165316670,7.78,208.46,208.35,8.02]
[1759165317872,74.9035,208.44,208.35,8.02]
[1759165318079,4.3164,208.38,208.34,12.5541151]
[1759165318270,7.78,208.37,208.34,12.5541151]
[1759165318475,4.3164,208.38,208.35,8.02]
[1759165318676,12.0964,208.38,208.34,12.5541151]
[1759165319277,12.0964,208.38,208.34,20.5741151]
[1759165319681,12.0964,208.38,208.35,8.02]
[1759165320481,4.3164,208.38,208.35,8.02]
[1759165320679,12.0959,208.4,208.34,12.5541151]
[1759165320875,7.78,208.44,208.35,8.02]
[1759165321276,7.78,208.41,208.34,12.5541151]
[1759165323985,7.78,208.41,208.34,20.5741151]
[1759165324378,4.3164,208.38,208.34,12.5541151]
[1759165324576,7.78,208.4,208.34,12.5541151]